Cogmind - Beta 16 @@@ ROGUE MODE // 2025.11.19 @ 22:47:14 Player: Boris Result: Destroyed by Y-54 Guardian with Flak Gun Performance ------------- Evolutions (0) 0 Regions Visited (3) 600 Robots Destroyed (39) 195 Value Destroyed (1172) 1172 Prototype IDs (12) 240 Alien Tech Used (0) 0 Bonus (0) 0 TOTAL SCORE: 2207 Bonus ------- None Cogmind --------- Core Integrity 0/250 Matter 300/300 Energy 100/100 System Corruption 0% Temperature Cool (18) Movement Core (100) Ox1 Location -7/Recycling Parts ------- > --- POWER (1) -------- (None) > --- PROPULSION (2) --- (None) > --- UTILITY (2) ------ Gun Armor > --- WEAPON (2+2) ----- (None) > --- INVENTORY (5) ---- Ion Engine Large Storage Unit Subdweller Beam Cannon Multitool Peak State ------------ > --- POWER ------------ Ion Engine > --- PROPULSION ------- Spiked Treads Spiked Treads > --- UTILITY ---------- Large Storage Unit Gun Armor > --- WEAPON ----------- Subdweller Beam Cannon Multitool > --- INVENTORY -------- SUBCON Basin [Rating: 37] Favorites ----------- Power Ion Engine Engine Ion Engine Propulsion Light Treads Treads Light Treads Utility Seismic Detector Device Seismic Detector Storage Large Storage Unit Protection Gun Armor Weapon Subdweller Beam Cannon Energy Gun Medium Laser Energy Cannon Subdweller Beam Cannon Ballistic Gun Assault Rifle Launcher Subdweller Shrapnel Launcher Special Weapon Multitool Build | -11 -10 -10 -7 ------- Run | Yrd Mat Sub Rec Slots Evolved . | . . . . Power . | . . . . Propulsion . | . . . . Utility . | . . . . Weapon . | . . . . Parts Attached 38 | 7 9 22 . Power 4 | 1 1 2 . Engine 4 | 1 1 2 . Core . | . . . . Reactor . | . . . . Propulsion 6 | 2 . 4 . Treads 6 | 2 . 4 . Leg . | . . . . Wheel . | . . . . Hover . | . . . . Flight . | . . . . Utility 15 | 2 4 9 . Device 10 | 1 3 6 . Storage 3 | 1 1 1 . Processor . | . . . . Hackware . | . . . . Protection 2 | . . 2 . Artifact . | . . . . Weapon 13 | 2 4 7 . Energy Gun 5 | 1 2 2 . Energy Cannon 3 | . . 3 . Ballistic Gun 2 | 1 1 . . Ballistic Cannon . | . . . . Launcher 1 | . . 1 . Special Weapon 2 | . 1 1 . Impact Weapon . | . . . . Slashing Weapon . | . . . . Piercing Weapon . | . . . . Special Melee Weapon . | . . . . Unidentified Prototypes . | . . . . Parts Lost 3 | . . 1 2 Power . | . . . . Propulsion 2 | . . . 2 Utility . | . . . . Weapon 1 | . . 1 . Highest Loss Streak 2 | . . 1 2 To Critical Strikes . | . . . . Average Backups 6 | 2 12 4 . Power . | . 2 . . Propulsion . | . . . . Utility 1 | . 3 1 . Weapon 2 | . 3 2 . Tool/Special . | . . . . Unused Backups 11 | . 3 8 . Power 3 | . 2 1 . Propulsion 1 | . . 1 . Utility 1 | . . 1 . Weapon 5 | . 1 4 . Tool/Special 1 | . . 1 . Average Slot Usage (%) 94 | . 99 95 69 Engine 13 | . 14 13 9 Treads 27 | . 27 27 22 Device 16 | . 14 19 . Storage 6 | . 14 3 9 Protection 2 | . . 2 11 Energy Gun 9 | . 18 6 . Energy Cannon 13 | . . 19 9 Ballistic Gun 1 | . 5 . . Special Weapon 2 | . 3 1 7 Peak Build Rating 37 | 9 10 37 37 Average Rating 12 | 5 8 12 26 On Entrance 13 | . 9 9 37 Avg Prop Armor Cover (%) 35 | 41 . . 35 Naked Turns . | . . . . Heaviest Build 39 | 14 31 39 39 Greatest Support 40 | 40 40 40 40 Greatest Overweight (x) 2 | 2 . . 1 Average Overweight (x) . | . . . . Largest Inventory Capacity 15 | 8 15 15 15 Average Capacity 9 | 7 14 7 13 Most Carried 15 | 4 15 15 15 Average Carried 7 | 2 12 6 7 Final Capacity 15 | 8 15 15 5 Final Carried 15 | 3 15 15 4 Class Distribution -------------------- 63% | Mutant 30% | Scavenger-Mutant 6% | Subdweller-Mutant Dominant Class ---------------- Mutant | -10/Materials Mutant | -10/Subcaves Mutant | -7/Recycling Resources | -11 -10 -10 -7 ----------- Run | Yrd Mat Sub Rec Matter Collected 1304 | 265 283 756 . Remotely . | . . . . Salvage Created 1461 | 120 706 635 . Parts 75 | 8 27 40 . Haulers Intercepted 2 | . 2 . . Recyclers Shooed 1 | . 1 . . Parts Field Recycled . | . . . . Retrieved Matter . | . . . . Parts Self-Destructed 9 | . . 9 . Prevented . | . . . . Parts Restored . | . . . . Kills | -11 -10 -10 -7 ------- Run | Yrd Mat Sub Rec Combat Hostiles Destroyed 29 | . 12 17 . Guns 13 | . 11 2 . Cannons 11 | . . 11 . AOE 4 | . . 4 . Classes Destroyed 10 | 2 3 5 . Tunneler 2 | 2 . . . Hauler 2 | . 2 . . Recycler 1 | 1 . . . Turret 2 | . . 2 . Watcher 3 | . 3 . . Swarmer 4 | . . 4 . Grunt 12 | . 12 . . Sentry 2 | . . 2 . Artisan 1 | . . 1 . Subdweller 11 | . . 11 . Best Kill Streak 7 | 1 3 7 . Combat Bots Only 5 | . 3 5 . Max Kills in Single Turn 2 | 1 1 2 . Gunslinging . | . . . . Exploded 2 | . . 2 . Melee . | . . . . Uniques/NPCs Destroyed . | . . . . Combat | -11 -10 -10 -7 -------- Run | Yrd Mat Sub Rec Hostile Shots Fired 289 | . 63 52 174 Missed 106 | . 21 15 70 Hits 183 | . 42 37 104 Projectile 183 | . 42 37 104 Critical Strikes 1 | . . 1 . Damage Taken 1988 | . 545 621 822 Core 250 | . 66 35 149 Absorbed by Shields . | . . . . Regen/Repaired (Parts) 224 | . 224 . . Core Remaining (%) 100 | 100 . . . Volleys Fired 129 | 5 69 51 4 Largest 2 | 2 2 2 1 Hottest 160 | 70 150 160 80 Shots Fired 219 | 10 126 80 3 Gun 151 | 10 117 24 . Cannon 54 | . . 51 3 Launcher 5 | . . 5 . Special 9 | . 9 . . Kinetic 38 | 5 28 5 . Thermal 162 | 5 86 68 3 Explosive . | . . . . Electromagnetic 19 | . 12 7 . Robot Hit Streak 32 | 5 32 19 5 Robot Miss Streak 3 | 1 3 2 . Penetration Max . | . . . . Secondary Targets 3 | . 3 . . Max Gunslinging Chain 1 | . 1 . . Shots Hit Robots 146 | 6 93 44 3 Core Hits 67 | 4 36 24 3 Critical Kills . | . . . . Critical Parts Destroyed . | . . . . Critical Strikes 5 | . 5 . . Burn 5 | . 5 . . Melee Attacks . | . . . . Impact . | . . . . Slashing . | . . . . Piercing . | . . . . Sneak Attacks . | . . . . Combat Hostiles . | . . . . Follow-up Attacks . | . . . . Damage Inflicted 2928 | 67 1257 1468 136 Guns 1553 | 67 1129 357 . Cannons 669 | . . 581 88 Explosions 634 | . 104 530 . Melee . | . . . . Ramming 48 | . . . 48 Kinetic 754 | 6 218 530 . Thermal 1958 | 61 950 859 88 Explosive . | . . . . Electromagnetic 168 | . 89 79 . Impact . | . . . . Slashing . | . . . . Piercing . | . . . . Highest Corruption . | . . . . Average Corruption . | . . . . Corruption Purged . | . . . . Corruption Blocked . | . . . . Overload Shots . | . . . . Overflow Damage 51 | . . 51 . Projectiles . | . . . . Explosions 51 | . . 51 . Melee . | . . . . Knockbacks . | . . . . Impact . | . . . . Kinetic . | . . . . Secondary . | . . . . Self-Inflicted Damage . | . . . . Shots . | . . . . Rammed 12 | . . . 12 Targets Rammed 12 | . . . 12 Kicked . | . . . . Crushed . | . . . . Highest Temperature 322 | 50 322 141 210 Average Temperature 68 | 23 79 40 116 Received Heat Transfer 732 | . 315 159 258 Effects 1 | . 1 . . Energy Bleed 1 | . 1 . . Siege Activations . | . . . . Martial Activations . | . . . . Shielding Activations . | . . . . Robots Disrupted . | . . . . Combat Hostiles . | . . . . Robots Corrupted . | . . . . Combat Hostiles . | . . . . Parts Fried . | . . . . Impact Corruptions . | . . . . Robots Melted 1 | . 1 . . Combat Hostiles 1 | . 1 . . Parts Melted 8 | . 6 2 . Heat Transferred 4299 | 185 2901 1102 111 Parts Sabotaged . | . . . . Parts Stolen . | . . . . Parts Stripped . | . . . . Power Chain Reactions 2 | . 2 . . Alert | -11 -10 -10 -7 ------- Run | Yrd Mat Sub Rec Maximum Alert Level . | . . . . Low Security (%) 100 | 100 100 . 100 Level 1 . | . . . . Level 2 . | . . . . Level 3 . | . . . . Level 4 . | . . . . Level 5 . | . . . . High Security . | . . . . Max Security . | . . . . Peak Influence 152 | 5 152 . 82 Initial 82 | . . . 82 Average 43 | 1 49 . 23 Influence Increases 732 | 15 411 220 86 Destroy 0b10 Robot/C 400 | . 240 160 . Destroy 0b10 Robot/NC 45 | 15 30 . . Destroy Leader 70 | . 70 . . Successful Hack 55 | . 29 . 26 Select Force Hacks 30 | . . . 30 Disable Machine 15 | . 15 . . Destroy Structure 12 | . 12 . . Partial Spotted 15 | . 15 . . Lose Combat Pursuer 90 | . . 60 30 Influence Decreases 700 | 15 397 62 226 Entered New Map 97 | . . 7 90 Time Decay 583 | 15 397 55 116 Lost Part 20 | . . . 20 Squads Dispatched 2 | . 2 . . Investigation 1 | . 1 . . Extermination . | . . . . Reinforcement 1 | . 1 . . Assault . | . . . . Garrison . | . . . . Intercept . | . . . . Searches Triggered . | . . . . Construction Impeded . | . . . . Haulers Reinforced . | . . . . Active Scanning Responses . | . . . . Cargo Convoy Interrupts . | . . . . Stealth | -11 -10 -10 -7 --------- Run | Yrd Mat Sub Rec Distress Signals . | . . . . Communications Jammed . | . . . . Distress Signals . | . . . . Times Spotted 47 | . 21 20 6 Peak Tracking Total 6 | . 5 6 6 Tactical Retreats 3 | . . 1 2 Traps | -11 -10 -10 -7 ------- Run | Yrd Mat Sub Rec Traps Triggered 2 | . 1 1 . Indirectly . | . . . . Trap Hack Attempts . | . . . . Triggered . | . . . . Disarmed . | . . . . Reprogrammed . | . . . . Reused . | . . . . Traps Extracted . | . . . . Installed . | . . . . Triggered . | . . . . Machines | -11 -10 -10 -7 ---------- Run | Yrd Mat Sub Rec Machines Disabled 6 | . 1 5 . Max in Single Turn 4 | . 1 4 . Machines Repaired . | . . . . Machines Dismantled . | . . . . Machines Sabotaged . | . . . . Overloaded Fab Kills . | . . . . Hacking | -11 -10 -10 -7 --------- Run | Yrd Mat Sub Rec Machines Accessed 18 | . 9 3 6 Terminals 10 | . 6 . 4 Fabricators . | . . . . Repair Stations 1 | . 1 . . Recycling Units 4 | . 2 . 2 Scanalyzers . | . . . . Garrison Access . | . . . . Total Hacks 51 | . 34 4 13 Successful 30 | . 20 4 6 Failed 21 | . 14 . 7 Catastrophic . | . . . . Database Lockouts . | . . . . Manual 29 | . 16 . 13 Terminals 30 | . 21 . 9 Fabricators . | . . . . Repair Stations 6 | . 6 . . Recycling Units 11 | . 7 . 4 Scanalyzers . | . . . . Garrison Access . | . . . . Terminal Hacks 8 | . 3 4 1 Record 2 | . 1 1 . Robot Analysis 1 | . . . 1 Open Door 1 | . . 1 . Locate Traps 2 | . 2 . . Proto ID Catalog 1 | . . 1 . Release Object 1 | . . 1 . Fabricator Hacks . | . . . . Repair Station Hacks 6 | . 6 . . Scan Component 3 | . 3 . . Repair 3 | . 3 . . Recycling Unit Hacks 1 | . 1 . . Retrieve Components 1 | . 1 . . Scanalyzer . | . . . . Garrison Access Hacks . | . . . . Unauthorized Hacks 15 | . 10 . 5 Terminals 12 | . 9 . 3 Assimilate 2 | . 2 . . Botnet 2 | . 1 . 1 Operators 1 | . 1 . . Skim 7 | . 5 . 2 Fabricators . | . . . . Repair Stations . | . . . . Recycling Units 3 | . 1 . 2 Recyclers 1 | . 1 . . Mask 1 | . . . 1 Tunnel 1 | . . . 1 Scanalyzers . | . . . . Garrison Access . | . . . . Data Cores Recovered . | . . . . Used . | . . . . Hacking Detections 12 | . 7 . 5 Full Trace Events 1 | . 1 . . Feedback Events . | . . . . Feedback Blocked . | . . . . Robot Schematics Acquired . | . . . . Robots Built . | . . . . Authchips . | . . . . Time . | . . . . Total Robot Build Rating . | . . . . Part Schematics Acquired . | . . . . Parts Built . | . . . . Authchips . | . . . . Time . | . . . . Total Part Build Rating . | . . . . Part Studies Acquired . | . . . . Parts Repaired 3 | . 3 . . Time 78 | . 78 . . Parts Recycled . | . . . . Recycled Matter . | . . . . Retrieved Matter . | . . . . Retrieved Components . | . . . . Parts Scanalyzed . | . . . . Part Schematics Acquired . | . . . . Parts Damaged . | . . . . Bothacking | -11 -10 -10 -7 ------------ Run | Yrd Mat Sub Rec Used RIF Installer . | . . . . Robots Hacked . | . . . . Non-combat . | . . . . Combat . | . . . . Robot Hacks Applied . | . . . . Relay Couplers Released . | . . . . Fabnet Peak Effective % . | . . . . Robots Rewired . | . . . . Allies Hacked . | . . . . Hacks Repelled . | . . . . Allies | -11 -10 -10 -7 -------- Run | Yrd Mat Sub Rec Total Allies . | . . . . Largest Group . | . . . . Highest-Rated Group . | . . . . Highest-Rated Ally . | . . . . Total Orders . | . . . . Ally Attacks . | . . . . Total Damage . | . . . . Kills . | . . . . Allies Corrupted . | . . . . Allies Melted . | . . . . Intel | -11 -10 -10 -7 ------- Run | Yrd Mat Sub Rec Active Infowar (turns) 6249 | 3 1847 4399 . Optics 2288 | . . 2288 . Terrain 389 | 3 386 . . Structural 919 | . 169 750 . Seismic 5673 | . 1292 4381 . Robot Analysis Total 1 | . . . 1 Derelict Logs Recovered 3 | . . 3 . Drone Launches . | . . . . Drone Recoveries . | . . . . Exploration | -11 -10 -10 -7 ------------- Run | Yrd Mat Sub Rec Turns Passed 8528 | 121 2084 5890 433 Spaces Moved 4517 | 66 747 3444 260 Core 75 | 15 . . 60 Treads 4442 | 51 747 3444 200 Legs . | . . . . Wheels . | . . . . Hover . | . . . . Flight . | . . . . Fastest Speed 50 | 50 160 160 100 Average Speed 158 | 138 160 160 146 Slowest Speed 160 | 160 160 160 160 Overloaded Moves . | . . . . Propulsion Burnouts . | . . . . Robots Hopped . | . . . . Potential Cave-ins . | . . . . Cave-ins Triggered . | . . . . Exploration Rate (%) 64 | 6 96 98 57 Regions Visited 3 Branch Regions 2 Pre-discovered Areas 3 | . 1 1 1 Known Exits Taken 1 | . 1 . . Unknown Exits Taken 2 | 1 . 1 . Scrap Searched 13 | . . 13 . Spaces Dug 22 | . 8 14 . Terrain Destroyed 61 | . 12 49 . Melee . | . . . . Projectile 13 | . 8 5 . AOE 48 | . 4 44 . Terrain Rammed . | . . . . Walls Destroyed . | . . . . Machines Disabled . | . . . . Actions | -11 -10 -10 -7 --------- Run | Yrd Mat Sub Rec Total 5655 | 84 1488 3779 304 Wait 744 | 3 629 89 23 Move 4514 | 65 746 3443 260 Hop . | . . . . Pick Up 48 | 4 14 30 . Fast Attach 34 | 6 4 24 . Attach 30 | 1 . 29 . Detach 30 | . 1 25 4 Swap 32 | . 20 12 . Drop 76 | . 5 70 1 Fire 129 | 5 69 51 4 Melee . | . . . . Ram . | . . . . Kick . | . . . . Crush 12 | . . . 12 Escape Stasis . | . . . . Rewire . | . . . . Trap . | . . . . Miscellaneous 6 | . . 6 . Route ------- -11/Scrapyard -10/Materials (discovered 6 exits: *Mat x3 / [*Min x2] / *Sub) -10/Subcaves (discovered 3 exits: [*Mat x2] / *Rec) -7/Recycling History --------- Turn | Location | Event 6 | -11/Scrapyard | Discovered new exit (range 15) 122 | -11/Scrapyard | Entered Materials 308 | -10/Materials | Build established: Mutant 522 | -10/Materials | Discovered new exit (range 16) 613 | -10/Materials | Repaired Lgt. Treads 641 | -10/Materials | Repaired Med. Laser 668 | -10/Materials | Repaired Assault Rifle 930 | -10/Materials | Discovered new exit (range 5) 1332 | -10/Materials | Discovered new exit (range 15) 1336 | -10/Materials | Discovered new exit (range 10) 1636 | -10/Materials | Discovered new exit (range 4) 1755 | -10/Materials | Learned location of 2 exits from Mines 1836 | -10/Materials | Learned location of 2 exits from Mines 1907 | -10/Materials | Identified exit to Materials 1907 | -10/Materials | Identified exit to Subcaves 1970 | -10/Materials | Learned location of Mines (-9) 2110 | -10/Materials | Learned Storage trap positions 2171 | -10/Materials | Learned Storage emergency access door positions 2206 | -10/Materials | Entered Subcaves 2210 | -10/Subcaves | Learned 2 Materials zone layouts 2221 | -10/Subcaves | Shifting Twisted Machinery released Riot Gun 2231 | -10/Subcaves | Shifting Twisted Machinery released Sub. Shrapnel Launcher 3125 | -10/Subcaves | A swath of the cavern ceiling suddenly collapsed 3247 | -10/Subcaves | Ambushed by angry Subdweller bent on revenge 3569 | -10/Subcaves | Build established: Scavenger-Mutant 3779 | -10/Subcaves | Ambushed by Subdwellers from Twisted Machinery 3918 | -10/Subcaves | Disturbed a concealed Subdweller 4475 | -10/Subcaves | Learned location of Zion (-7) 4475 | -10/Subcaves | Met a Zionite searching for "candidates" 4606 | -10/Subcaves | Shifting Twisted Machinery released Spk. Treads 5122 | -10/Subcaves | Shifting Twisted Machinery released Sub. Monowheel 5202 | -10/Subcaves | Discovered new exit (range 11) 5296 | -10/Subcaves | Visited 4L-MR0's lab 5315 | -10/Subcaves | Found Gun Armor 5469 | -10/Subcaves | Discovered new exit (range 9) 6165 | -10/Subcaves | Build established: Mutant 6445 | -10/Subcaves | Discovered new exit (range 19) 6817 | -10/Subcaves | Shifting Twisted Machinery released Sub. Beam Cannon 6824 | -10/Subcaves | Shifting Twisted Machinery released Flamer 7554 | -10/Subcaves | Attached Gun Armor, gained temporary slots: Weapon x2 7780 | -10/Subcaves | Found SUBCON Basin 8096 | -10/Subcaves | Entered Recycling 8430 | -7/Recycling | Core integrity fell below 50% 8476 | -7/Recycling | Core integrity fell below 20% 8529 | -7/Recycling | Destroyed by Y-54 Guardian with Flak Gun Last Messages --------------- 08278_ Connecting with Recycling Unit... >>Trojan(Mask) Trojan loaded successfully. Testing... Masking routine running. [Achievement: Myspace] 08302_ Dropped SUBCON Basin. 08387_ Y-54 Guardian springs to life. 08392_ Sub. Beam Cannon shoots sparks and powers down. 08421_ Slammed into Y-54 Guardian. [Achievement: For Emergencies Only] 08423_ Slammed into Y-54 Guardian. 08464_ Material Compactor disabled. 08498_ Connecting with Terminal... 08501_ Slammed into R-06 Scavenger. 08505_ Connecting with Recycling Unit... >>Force(Tunnel) DISCOVERED[-6/Archives] 08524_ Y-54 Guardian springs to life. 08524_ Spk. Treads destroyed. Map ----- +----------------------------------------------------+ | | | | | | | | | | | | | | | | | | | ?????????????????????????????????????????????????? | | ?????????????????????????????????????????????????? | | ?????????????????????????????????????????????????? | | ?????????????????????????????????????????????????? | | ?????????????????????????????????????????????????? | | ?????????????????????????????????????????????????? | | ?????????????????????????????????????????????????? | | ?????????????????????????????????????????????????? | | ?????????????????????????????????????????????????? | | ?????????????????????????????????????????????????? | | ?????????????????????????????????????????????????? | | ?????????????????????????????????????????????????? | | ?????????????????????????????????????????????????? | | ?????????????????#####???????????????????????????? | | ??????????#####??#***###?????????????????????????? | | ??????????# ####* *# ###########???????????????? | | ??????????# Y @ r ????????? | | ??????????# ###### ######## ####???????????????? | | ??????????## ##????# #???????????????????????????? | | ???????????# #?????# #???????????????????????????? | | ???????????# #?????# #???????????????????????????? | | ???????????# #?????# #???????????????????????????? | | ????????####+###???# #???????????????????????????? | | ????????# #???# #???????????????????????????? | | ????????# ##### #???????????????????????????? | | ????????# + #???????????????????????????? | | ????????# """ #######???????????????????????????? | | ????????# """ """#??????????????????????????????? | | ????????# """ Y"#??????????????????????????????? | | ######### """#??????????????????????????????? | | # """ ####??????????????????????????????? | | # """%"#????????????????????????????????? | | + """ "#????????????????????????????????? | | " # "#????????????????????????????????? | | "" # """ T#????????????????????????????????? | | "" # """ "#????????????????????????????????? | | "" # """ "#????????????????????????????????? | | " # "#????????????????????????????????? | | # """ ##????????????????????????????????? | | / """ #?????????????????????????????????? | | ####### # """ #?????????????????????????????????? | +----------------------------------------------------+ Best States ------------- Heat Dissipation 35 Energy Generation 15 Energy Capacity 250 Matter Stores 300 Matter Capacity 300 Sight Range 21 Terrain Scan Range 16 Terrain Scan Density 10 Armor Coverage 800 Evasion (%) 50 Recoil Reduction 2 Item Schematics ----------------- None Robot Schematics ------------------ None Fabricated ------------ Nothing Repaired ---------- Lgt. Treads | 31% | -10/Materials Med. Laser | 18% | -10/Materials Assault Rifle | 29% | -10/Materials Studied --------- None Alien Tech Used ----------------- None Achievements -------------- Art Critic DATA ERROR: Steam Global Achievement% For Emergencies Only I Have A Map? Mistaken Identity Myspace Organ Harvest Physics Hates This One Trick Spot Them First Survival Of The Most Covered Challenges ------------ None Game ------ Seed PowerCooledMegatreads Manual? 0 Play Time 00:47:39 Cumulative 636.0 hours Start 2025.11.19 @ 21:52:46 End 2025.11.19 @ 22:47:14 Sessions 1 Manual Loads 0 Difficulty Rogue Special Mode None Game No. 215 Rogue 199 Adventurer 15 Explorer 1 Win Type - Total 37 Types 10/3/10/2/2/0/6/3/1/0 Lore% 93 Gallery% 85 Achievement% 47 Wizard Run 0 Options --------- Layout 0 ASCII 0 Keyboard 0 Movement Numpad Keybinds 0 Fullscreen 1 Font 18/SmallcapsGlow Map View 76x50 Zoom Use 0% Tactical HUD 1 Map Filters NONE Filters NONE Steam 1 RUN: 2ea8259b-a7aa-411b-b1af-9284b1dcd315